Cogmind - Beta 12 @@@ ROGUE MODE // 2024.01.08 @ 20:08:22 Player: lyrabold Result: Destroyed by as-61822 with Assembled Focal Cannon Performance ------------- Evolutions (3) 1500 Regions Visited (16) 3200 Robots Destroyed (378) 1890 Value Destroyed (12510) 12510 Prototype IDs (33) 660 Alien Tech Used (0) 0 Bonus (4098) 4098 TOTAL SCORE: 23858 Bonus ------- High Alert Combat Kills 2560 Follower Combat Kills 386 Entered Garrisons 400 Met Imprinter 300 Destroyed Z-Imprinter 1000 Friendly Fire -548 Cogmind --------- Core Integrity 0/700 Matter 254/300 Energy 642/700 System Corruption 0% Temperature Cool (80) Movement Treading (490) Ox4 Location -7/Deep Caves Parts ------- > --- POWER (2) -------- Zionite Light DM Reactor > --- PROPULSION (4) --- Armored Treads Armored Treads Zionite Composite Leg I Zionite Composite Leg I > --- UTILITY (5) ------ Cargo Storage Unit Zionite Biocell Zionite Weapon Casing Improved Light Armor Plating > --- WEAPON (2) ------- Improved EM Pulse Cannon Improved EM Pulse Cannon > --- INVENTORY (30) --- Experimental Heat Sink Experimental Heat Sink Zionite Biocell (600) High-capacity Matter Pod (200) Makeshift Salvage Targeting Computer Experimental Targeting Computer Precision Energy Filter Advanced Weapon Cycler Advanced Transmission Jammer Phase Shifter Improved Utility Shielding Zionite Weapon Casing Zionite Weapon Casing Hardened Light Armor Plating Improved Shield Generator Authchip [Propulsion] Long-range Tractor Beam Improved Trap Extractor (6/6 Dirty Bomb) Zionite Phaser-S 8R-AWN's Boregun Missile Launcher Power Maul CR-A16's Pointy Stick Self-destruct Interrupter (50) Self-destruct Interrupter (50) Peak State ------------ > --- POWER ------------ Zionite Light DM Reactor > --- PROPULSION ------- Armored Treads Zionite Composite Leg I Zionite Composite Leg I Zionite Glidesys I > --- UTILITY ---------- Experimental Heat Sink Cargo Storage Unit Experimental Core Analyzer Zionite Light Carapace > --- WEAPON ----------- Zionite Phaser-S Zionite Phaser-S > --- INVENTORY -------- Experimental Heat Sink Zionite Biocell Zionite Biocell High-capacity Matter Pod Long-range Terrain Scanner Encrypted Comm Array Makeshift Salvage Targeting Computer Experimental Targeting Computer Precision Energy Filter Advanced Weapon Cycler Advanced Transmission Jammer Phase Shifter Improved Utility Shielding Zionite Weapon Casing Zionite Weapon Casing Zionite Weapon Casing Improved Light Armor Plating Improved Shield Generator Authchip [Propulsion] Long-range Tractor Beam Improved Trap Extractor Improved EM Pulse Cannon Improved EM Pulse Cannon 8R-AWN's Boregun Missile Launcher Improved Datajack Power Maul CR-A16's Pointy Stick Self-destruct Interrupter Self-destruct Interrupter [Rating: 83] Favorites ----------- Power Micro Nuclear Core Engine Improved Deuterium Engine Power Core Micro Nuclear Core Reactor Zionite Light DM Reactor Propulsion Armored Treads Treads Armored Treads Leg Zionite Composite Leg I Wheel Wheel Hover Unit Zionite Glidesys I Utility Experimental Core Analyzer Device Experimental Heat Sink Storage Huge Storage Unit Processor Experimental Core Analyzer Hackware Authchip [Storage] Protection Hardened Heavy Armor Plating Weapon Heavy Assault Cannon Energy Gun Gatling Laser Energy Cannon Advanced Beam Cannon Ballistic Gun Assault Rifle Ballistic Cannon Heavy Assault Cannon Launcher Rocket Launcher Special Weapon Plasma Cutter Impact Weapon Power Maul Special Melee Weapon Datajack Build | -11 -10 -10 -9 -9 -9 -8 -8 -8 -8 -8 -8 -7 -7 -7 -7 -7 ------- Run | Jun Mat Min Mat Min Exi Min Mat Gar Mat Gar Mat Fac Low Low Zio Dee Slots Evolved 6 | . . . 2 . . . 2 . . . . 2 . . . . Power 1 | . . . . . . . . . . . . 1 . . . . Propulsion 2 | . . . 1 . . . 1 . . . . . . . . . Utility 3 | . . . 1 . . . 1 . . . . 1 . . . . Weapon . | . . . . . . . . . . . . . . . . . Parts Attached 347 | 6 9 8 29 5 23 6 17 27 27 41 23 36 18 15 15 42 Power 17 | 1 1 2 4 . 2 . . 1 . . . 1 1 1 1 2 Engine 12 | 1 1 2 4 . 2 . . . . . . . 1 1 . . Core 3 | . . . . . . . . 1 . . . 1 . . 1 . Reactor 2 | . . . . . . . . . . . . . . . . 2 Propulsion 79 | 2 3 3 8 . 5 . 4 4 11 6 10 11 . 1 2 9 Treads 67 | . 2 1 7 . 5 . 4 2 11 6 10 11 . 1 2 5 Leg 6 | 2 . . . . . . . 2 . . . . . . . 2 Wheel 4 | . 1 2 1 . . . . . . . . . . . . . Hover 2 | . . . . . . . . . . . . . . . . 2 Flight . | . . . . . . . . . . . . . . . . . Utility 87 | 1 3 . 6 1 4 1 4 2 5 6 7 9 12 10 2 14 Device 37 | 1 1 . 3 1 2 1 1 . 3 3 6 4 5 3 . 3 Storage 5 | . 1 . . . . . . . . . . 1 . . . 3 Processor 3 | . . . . . . . 1 . . . . . 1 . 1 . Hackware 1 | . . . . . . . . . . . . 1 . . . . Protection 41 | . 1 . 3 . 2 . 2 2 2 3 1 3 6 7 1 8 Artifact . | . . . . . . . . . . . . . . . . . Weapon 164 | 2 2 3 11 4 12 5 9 20 11 29 6 15 5 3 10 17 Energy Gun 56 | 1 . 3 9 2 1 . . 4 8 12 4 4 . . 1 7 Energy Cannon 18 | . . . . . . . 3 8 2 . . . . . . 5 Ballistic Gun 17 | 1 2 . 1 . 7 . 2 . . . . . 1 . . 3 Ballistic Cannon 20 | . . . . . . 2 1 . . 4 . 4 2 2 5 . Launcher 25 | . . . 1 2 2 3 2 1 . 3 2 5 1 1 . 2 Special Weapon 1 | . . . . . 1 . . . . . . . . . . . Impact Weapon 22 | . . . . . . . 1 7 1 10 . 2 . . 1 . Slashing Weapon . | . . . . . . . . . . . . . . . . . Piercing Weapon . | . . . . . . . . . . . . . . . . . Special Melee Weapon 5 | . . . . . 1 . . . . . . . 1 . 3 . Unidentified Prototypes 11 | . . . 1 . . . 1 . . . . . . 1 . 8 Corrupted Parts 1 | . . . . . . . . . 1 . . . . . . . System Corruption 10 | . . . . . . . . . 10 . . . . . . . Parts Lost 62 | . 2 6 6 . 11 1 . 5 4 3 1 . 2 2 . 19 Power 10 | . 1 . 2 . 1 . . 1 . . . . 1 1 . 3 Propulsion 21 | . . 3 1 . 5 . . 1 2 1 . . . . . 8 Utility 12 | . 1 . 1 . 3 . . 1 . 2 . . 1 . . 3 Weapon 19 | . . 3 2 . 2 1 . 2 2 . 1 . . 1 . 5 Highest Loss Streak 10 | . 2 2 3 . 5 1 . 1 2 1 1 . 2 2 . 10 To Critical Strikes 8 | . . . . . 7 . . 1 . . . . . . . . Average Slot Usage (%) 86 | . 94 99 95 100 98 100 99 99 99 99 99 83 71 73 74 74 Engine 5 | . 12 13 10 11 10 11 9 5 . . . . 1 4 7 1 Core 5 | . . . . . . . . 3 9 9 9 14 7 7 7 1 Treads 27 | . 11 14 20 33 32 33 36 30 33 36 36 29 30 30 30 13 Leg 1 | . 5 . . . . . . 5 2 . . . . . . 8 Wheel 1 | . 11 13 9 . . . . . . . . . . . . . Device 5 | . 3 . 14 11 8 11 15 9 9 8 8 4 . . . 3 Storage 8 | . 11 14 11 11 11 11 9 9 9 9 9 7 7 7 7 7 Processor 5 | . . . . . . . 1 9 9 9 9 7 7 7 7 6 Protection 8 | . 10 14 7 11 12 11 9 9 8 8 9 6 6 6 7 6 Energy Gun 6 | . 1 23 19 4 3 . . 2 17 12 17 5 . . . 7 Energy Cannon 1 | . . . . . . . 9 11 . . . . . . . 2 Ballistic Gun 3 | . 26 4 1 11 13 11 5 . . . . . . . . . Ballistic Cannon 3 | . . . . . . 10 2 . . 1 . 3 6 6 5 1 Naked Turns . | . . . . . . . . . . . . . . . . . Heaviest Build 199 | 7 88 90 106 106 108 103 111 120 122 121 119 199 199 188 188 187 Greatest Support 96 | 20 20 20 62 60 66 66 86 82 80 80 82 96 80 80 80 80 Greatest Overweight (x) 9 | . 8 8 9 1 1 1 1 1 1 1 1 3 2 2 2 7 Average Overweight (x) 2 | . 6 7 7 1 1 1 1 1 1 1 1 1 1 1 1 2 Largest Inventory Capacity 30 | 5 25 25 25 25 25 25 25 25 25 25 25 30 30 30 30 30 Average Capacity 27 | 5 20 25 25 25 25 25 25 25 25 25 25 27 30 30 30 30 Most Carried 30 | 3 21 23 25 25 25 25 25 25 25 25 25 30 30 30 30 30 Average Carried 25 | 1 14 21 24 25 23 23 24 24 24 23 24 26 28 29 29 28 Final Capacity 30 | 5 25 25 25 25 25 25 25 25 25 25 25 30 30 30 30 30 Final Carried 30 | 3 21 23 25 25 25 23 24 24 24 25 25 30 29 30 30 25 Class Distribution -------------------- 48% | Hauler-Mutant 30% | Scavenger-Mutant 20% | Mutant Dominant Class ---------------- Mutant | -10/Materials Mutant | -10/Mines Mutant | -9/Materials Scavenger-Mutant | -9/Mines Scavenger-Mutant | -9/Exiles Mutant | -8/Mines Scavenger-Mutant | -8/Materials Scavenger-Mutant | -8/Garrison Scavenger-Mutant | -8/Materials Scavenger-Mutant | -8/Garrison Scavenger-Mutant | -8/Materials Hauler-Mutant | -7/Factory Hauler-Mutant | -7/Lower Caves Hauler-Mutant | -7/Lower Caves Hauler-Mutant | -7/Zion Hauler-Mutant | -7/Deep Caves Resources | -11 -10 -10 -9 -9 -9 -8 -8 -8 -8 -8 -8 -7 -7 -7 -7 -7 ----------- Run | Jun Mat Min Mat Min Exi Min Mat Gar Mat Gar Mat Fac Low Low Zio Dee Matter Collected 8468 | 302 573 169 381 117 910 325 385 270 288 816 449 1115 840 782 126 620 Remotely 188 | . 160 . . . . . . . . . . . 28 . . . Salvage Created 13470 | 77 690 852 1250 71 362 471 796 801 1444 834 1730 2156 491 645 . 800 Parts 751 | 11 40 36 68 1 52 24 32 62 74 44 84 136 32 32 . 23 Haulers Intercepted 20 | . 2 . 4 . . . 2 . 3 . 4 4 . 1 . . Recyclers Shooed 5 | . 2 1 . . . . . . 2 . . . . . . . Parts Field Recycled . | . . . . . . . . . . . . . . . . . Retrieved Matter . | . . . . . . . . . . . . . . . . . Parts Self-Destructed 69 | . . . . . . . . . . . . . 40 29 . . Prevented . | . . . . . . . . . . . . . . . . . Kills | -11 -10 -10 -9 -9 -9 -8 -8 -8 -8 -8 -8 -7 -7 -7 -7 -7 ------- Run | Jun Mat Min Mat Min Exi Min Mat Gar Mat Gar Mat Fac Low Low Zio Dee Combat Hostiles Destroyed 270 | 1 9 9 25 6 5 9 14 30 23 21 35 37 16 13 . 17 Guns 127 | 1 9 8 21 2 1 2 2 4 23 14 27 7 . . . 6 Cannons 66 | . . . . . . 2 9 14 . 1 . 15 11 10 . 4 AOE 67 | . . 1 2 4 4 5 3 9 . 5 6 15 5 3 . 5 Classes Destroyed 25 | 2 5 1 3 2 2 . 1 1 1 . 2 1 2 . . 2 Worker 20 | . 3 . 1 . . 1 1 . 2 . 2 10 . . . . Builder 17 | . . 1 . . . . . . 2 . 2 12 . . . . Tunneler 9 | 2 1 2 1 . . 2 . . . . . 1 . . . . Hauler 20 | . 2 . 4 . . . 2 . 3 . 4 4 . 1 . . Recycler 20 | . 3 4 . . . 3 1 . 2 . 2 5 . . . . Minesweeper 4 | . . . . . . . . . . . . . 1 3 . . Mechanic 4 | . . . . . . . . . 1 . 2 1 . . . . Operator 4 | . . . 1 . . . . . 2 . . 1 . . . . Turret 1 | . . . . . 1 . . . . . . . . . . . Watcher 19 | . 3 . 4 . . . 2 . 4 . 4 2 . . . . Swarmer 58 | . 6 . 3 . . 3 . 15 2 5 7 7 7 3 . . Grunt 122 | 1 3 9 16 . . 6 8 7 17 7 16 18 5 9 . . Brawler 7 | . . . 1 . . . . . . 2 2 2 . . . . Duelist 11 | . . . . 1 . . . 2 2 1 2 1 1 1 . . Protector 2 | . . . . . . . . . . . 2 . . . . . Sentry 29 | . . . 5 . . . 5 2 1 6 5 3 2 . . . Demolisher 1 | . . . . . . . . 1 . . . . . . . . Hunter 6 | . . . . . . . 1 3 1 . . 1 . . . . Programmer 6 | . . . . . . . . . . . . 5 1 . . . Heavy 1 | . . . . . . . . . . . 1 . . . . . Zionite 1 | . . . . . 1 . . . . . . . . . . . Z-Light 8 | . . . . . . . . . . . . . . . . 8 Decomposer 1 | . . . . . . . . . . . . . . 1 . . Assembled 15 | . . . . 5 4 . . . . . . . . . . 6 Golem 2 | . . . . . . . . . . . . . . . . 2 Savage 1 | . . . . . . . . . . . . . . 1 . . Mutant 2 | . . . . . . . . . . . . . 1 1 . . Best Kill Streak 11 | 2 4 2 4 4 4 3 4 10 6 3 6 11 7 4 . 5 Combat Bots Only 10 | 1 3 2 4 4 4 3 4 10 6 3 6 6 7 4 . 5 Max Kills in Single Turn 5 | 1 2 1 2 1 2 2 2 4 2 2 4 5 3 2 . 2 Gunslinging 1 | . . . . . . . . . 1 . . . . . . . Exploded 4 | . . 1 1 1 2 2 2 4 . 2 4 3 3 2 . 2 Melee . | . . . . . . . . . . . . . . . . . Uniques/NPCs Destroyed 5 | . . . . . 4 . . . . . . . . . . 1 8R-AWN (-9/Exiles) EX-BIN (-9/Exiles) EX-HEX (-9/Exiles) EX-DEC (-9/Exiles) Z-Imprinter (-7/Deep Caves) Combat | -11 -10 -10 -9 -9 -9 -8 -8 -8 -8 -8 -8 -7 -7 -7 -7 -7 -------- Run | Jun Mat Min Mat Min Exi Min Mat Gar Mat Gar Mat Fac Low Low Zio Dee Damage Taken 15395 | 65 388 528 865 115 1525 427 539 1224 1033 483 1144 1080 1055 710 . 4214 Core 1720 | 32 48 74 132 . 178 25 63 112 142 10 169 82 31 . . 622 Absorbed by Shields 177 | . . . 52 . 116 . . . . . . 9 . . . . Redirected to Shielding 263 | . 3 16 . . . . . . . . . . . . . 244 Regen/Repaired (Parts) 88 | . 52 . . . . . . . . . . 36 . . . . Core Remaining (%) 37 | 87 . 38 . . . 16 . . . . 9 . . . . . Volleys Fired 921 | 14 61 42 86 8 123 22 58 51 69 44 81 87 60 41 . 74 Largest 2 | 2 2 2 2 2 2 2 2 2 2 2 2 2 1 1 . 2 Hottest 160 | 60 60 80 125 99 98 59 128 160 160 160 160 160 60 60 . 138 Shots Fired 1527 | 28 122 84 164 11 176 39 112 98 138 83 156 116 64 45 . 91 Gun 1070 | 28 122 84 162 6 160 17 34 12 128 57 153 55 8 . . 44 Cannon 389 | . . . . . . 17 75 83 10 22 . 50 54 42 . 36 Launcher 63 | . . . 2 5 11 5 3 3 . 4 3 11 2 3 . 11 Special 5 | . . . . . 5 . . . . . . . . . . . Kinetic 628 | 14 117 35 21 3 155 34 50 . . 22 . 50 62 42 . 23 Thermal 684 | 14 5 . 81 3 10 . 59 95 128 57 153 55 . . . 24 Explosive 63 | . . . 2 5 11 5 3 3 . 4 3 11 2 3 . 11 Electromagnetic 141 | . . 49 60 . . . . . 10 . . . . . . 22 Phasic 11 | . . . . . . . . . . . . . . . . 11 Robot Hit Streak 21 | 4 10 7 15 4 12 14 16 21 13 20 17 12 11 6 . 5 Robot Miss Streak 7 | 2 6 3 4 3 4 2 5 2 5 4 7 4 2 2 . 6 Penetration Max 1 | . . . . . . . . . . . . 1 1 . . . Secondary Targets 6 | . . . 2 . . . . 1 3 . . . . . . . Max Gunslinging Chain 1 | . . . 1 . . . . 1 1 . . . . . . . Shots Hit Robots 1064 | 13 72 54 119 6 127 24 66 57 119 63 144 88 32 23 2 55 Core Hits 728 | 4 29 24 51 11 41 21 39 42 95 53 120 115 20 17 . 46 Critical Kills 6 | . 1 . . . . . . 3 . . . . 1 . . 1 Critical Parts Destroyed 2 | . . . . . . . . . . . . . 2 . . . Critical Strikes 36 | . 1 . 10 . 2 2 . 3 . 1 . 7 6 1 . 3 Burn 10 | . . . 9 . 1 . . . . . . . . . . . Meltdown 3 | . . . . . . . . 3 . . . . . . . . Destroy 6 | . 1 . . . 1 . . . . . . . 3 . . 1 Blast 15 | . . . . . . 2 . . . 1 . 7 3 1 . 1 Corrupt 2 | . . . 1 . . . . . . . . . . . . 1 Melee Attacks 118 | . . . . . 4 . 1 45 2 47 . 3 4 . 12 . Impact 108 | . . . . . . . 1 45 2 47 . 3 . . 10 . Slashing . | . . . . . . . . . . . . . . . . . Piercing . | . . . . . . . . . . . . . . . . . Sneak Attacks 10 | . . . . . 4 . . . . . . . 4 . 2 . Combat Hostiles . | . . . . . . . . . . . . . . . . . Follow-up Attacks . | . . . . . . . . . . . . . . . . . Damage Inflicted 29808 | 185 891 741 2507 329 2186 994 1500 1705 2372 1678 3684 5366 1780 1680 . 2210 Guns 13834 | 185 890 706 2092 102 1713 104 212 166 2032 1023 2943 1004 66 . . 596 Cannons 8231 | . . . . . . 304 963 1027 222 298 . 2106 1271 1356 . 684 Explosions 7138 | . . 30 402 227 470 504 295 512 . 299 723 2151 434 231 . 860 Melee 147 | . . . . . . . . . 89 58 . . . . . . Ramming 455 | . 1 5 13 . . 82 30 . 29 . 18 105 9 93 . 70 Kinetic 9826 | 91 849 357 477 40 1630 408 476 . . 298 . 2106 1337 1356 . 401 Thermal 11718 | 94 41 30 1268 62 86 . 699 1193 2032 1023 3373 1336 . . . 481 Explosive 5904 | . . . 99 227 470 504 295 512 . 299 293 1752 434 231 . 788 Electromagnetic 1650 | . . 349 650 . . . . . 222 . . 67 . . . 362 Impact 147 | . . . . . . . . . 89 58 . . . . . . Slashing . | . . . . . . . . . . . . . . . . . Piercing . | . . . . . . . . . . . . . . . . . Phasic 108 | . . . . . . . . . . . . . . . . 108 Highest Corruption 10 | . . . . . . . . . 10 10 10 6 5 4 4 . Average Corruption 5 | . . . . . . . . . 10 10 10 4 3 4 4 . Corruption Purged 5 | . . . . . . . . . . . . 3 2 . . . Corruption Blocked . | . . . . . . . . . . . . . . . . . Effects 357 | . . . . . . . . . 22 60 68 50 75 79 3 . Message Errors 69 | . . . . . . . . . 2 11 15 10 13 18 . . Matter Fused 99 | . . . . . . . . . 4 19 18 13 20 22 3 . Heat Flow Errors 38 | . . . . . . . . . 3 3 10 1 7 14 . . Energy Discharges 45 | . . . . . . . . . 3 10 6 10 11 5 . . Parts Fused 4 | . . . . . . . . . . 1 1 . 1 1 . . Data Loss (minor) 54 | . . . . . . . . . 5 10 7 10 13 9 . . Data Loss (major) 17 | . . . . . . . . . 2 2 2 1 5 5 . . Misfires 18 | . . . . . . . . . 1 3 3 3 4 4 . . Alerts 6 | . . . . . . . . . 1 1 . 2 1 1 . . Weapon Failures 7 | . . . . . . . . . 1 . 6 . . . . . Overload Shots . | . . . . . . . . . . . . . . . . . Overflow Damage 730 | . . . 52 . . 16 13 20 . 48 8 248 40 235 . 50 Projectiles 402 | . . . . . . . 13 2 . . . 160 36 169 . 22 Explosions 212 | . . . 52 . . 14 . 18 . . 8 86 4 9 . 21 Melee 116 | . . . . . . 2 . . . 48 . 2 . 57 . 7 Knockbacks 31 | . . . . . . 7 3 . 1 4 . 4 3 7 . 2 Impact 4 | . . . . . . 1 . . 1 . . 1 . 1 . . Kinetic 26 | . . . . . . 6 2 . . 4 . 3 3 6 . 2 Secondary 1 | . . . . . . . 1 . . . . . . . . . Self-Inflicted Damage 827 | . . . 148 49 36 74 . 44 . 20 104 75 78 . . 199 Shots 23 | . . . 3 1 1 3 . 1 . 1 2 2 2 . . 7 Rammed 35 | . . 1 1 . . 5 2 . 2 . 2 6 3 1 . 12 Targets Rammed 52 | . 1 1 2 . . 7 3 . 4 . 3 11 3 3 . 14 Kicked 1 | . 1 . . . . . . . . . . . . . . . Crushed 16 | . . . 1 . . 2 1 . 2 . 1 5 . 2 . 2 Highest Temperature 398 | 36 9 156 164 102 158 4 48 186 339 223 307 212 305 275 . 398 Average Temperature 68 | 29 5 33 46 46 69 4 21 69 91 44 56 54 76 93 . 127 Received Heat Transfer 4631 | 36 90 306 320 . . 153 225 405 513 189 522 289 126 414 . 1043 Effects 11 | . . . . . . . . . 4 . 1 . . 1 . 5 Energy Bleed 3 | . . . . . . . . . 1 . 1 . . 1 . . Interference 7 | . . . . . . . . . 3 . . . . . . 4 Matter Decay 1 | . . . . . . . . . . . . . . . . 1 Siege Activations . | . . . . . . . . . . . . . . . . . Robots Corrupted 3 | . . . 1 . . . . . . . . . . . . 2 Combat Hostiles 3 | . . . 1 . . . . . . . . . . . . 2 Parts Fried 20 | . . 2 4 . . 2 . . 6 . . . . 1 . 5 Impact Corruptions 12 | . . . . . . 1 . . . 2 . 1 1 6 . 1 Robots Melted 6 | . . . 1 . . . . 3 . . 2 . . . . . Combat Hostiles 6 | . . . 1 . . . . 3 . . 2 . . . . . Parts Melted 61 | . . 1 4 . 6 . 3 11 6 7 19 3 . . . 1 Heat Transferred 23702 | 200 100 50 2964 111 249 . 1221 2095 4600 2232 6748 2475 . . . 657 Parts Sabotaged . | . . . . . . . . . . . . . . . . . Parts Stolen . | . . . . . . . . . . . . . . . . . Parts Stripped . | . . . . . . . . . . . . . . . . . Power Chain Reactions 4 | . . 1 2 . . . . . . . . . . . . 1 Missiles Intercepted . | . . . . . . . . . . . . . . . . . Alert | -11 -10 -10 -9 -9 -9 -8 -8 -8 -8 -8 -8 -7 -7 -7 -7 -7 ------- Run | Jun Mat Min Mat Min Exi Min Mat Gar Mat Gar Mat Fac Low Low Zio Dee Peak Influence 1532 | 30 219 159 574 326 . 194 302 1164 950 1532 1050 1352 . . . . Initial 746 | . 19 9 17 223 . . . 152 567 604 746 427 . . . . Average 489 | 10 70 77 222 259 . 62 124 776 699 1088 782 747 . . . . Maximum Alert Level 4 | . 1 . 2 1 . . 1 4 3 4 3 4 . . . . Low Security (%) 37 | 100 96 100 57 . . 100 74 2 . . . . . . . . Level 1 9 | . 3 . 29 100 . . 25 13 . . . 3 . . . . Level 2 20 | . . . 13 . . . . 21 58 12 24 54 . . . . Level 3 22 | . . . . . . . . 46 41 35 75 20 . . . . Level 4 10 | . . . . . . . . 16 . 52 . 21 . . . . Level 5 . | . . . . . . . . . . . . . . . . . High Security . | . . . . . . . . . . . . . . . . . Max Security . | . . . . . . . . . . . . . . . . . Squads Dispatched 39 | . 3 2 7 . . . 2 . 7 . 5 13 . . . . Investigation 13 | . 2 1 4 . . . 1 . 2 . 2 1 . . . . Extermination 4 | . . . . . . . . . . . . 4 . . . . Reinforcement 13 | . 1 . 3 . . . . . 3 . 1 5 . . . . Assault 7 | . . 1 . . . . . . 1 . 2 3 . . . . Garrison 2 | . . . . . . . 1 . 1 . . . . . . . Intercept . | . . . . . . . . . . . . . . . . . Searches Triggered . | . . . . . . . . . . . . . . . . . Construction Impeded 3 | . . . 1 . . . . . . . . 2 . . . . Haulers Reinforced 2 | . . . . . . . . . . . . 2 . . . . Active Scanning Responses . | . . . . . . . . . . . . . . . . . Cargo Convoy Interrupts . | . . . . . . . . . . . . . . . . . Stealth | -11 -10 -10 -9 -9 -9 -8 -8 -8 -8 -8 -8 -7 -7 -7 -7 -7 --------- Run | Jun Mat Min Mat Min Exi Min Mat Gar Mat Gar Mat Fac Low Low Zio Dee Distress Signals 16 | . 2 . 2 2 . . 1 . 3 . 4 2 . . . . Communications Jammed . | . . . . . . . . . . . . . . . . . Distress Signals . | . . . . . . . . . . . . . . . . . Times Spotted 424 | 1 17 19 42 7 53 10 22 32 48 21 47 54 19 12 . 20 Peak Tracking Total 9 | 1 4 3 4 4 9 3 4 8 4 3 6 5 7 5 . 5 Tactical Retreats 37 | . 1 . 3 2 20 1 1 1 1 1 1 1 1 1 . 2 Traps | -11 -10 -10 -9 -9 -9 -8 -8 -8 -8 -8 -8 -7 -7 -7 -7 -7 ------- Run | Jun Mat Min Mat Min Exi Min Mat Gar Mat Gar Mat Fac Low Low Zio Dee Traps Triggered 21 | . . . 3 . . . . 4 3 5 . 6 . . . . Indirectly 2 | . . . . . . . . . . . . 2 . . . . Trap Hack Attempts . | . . . . . . . . . . . . . . . . . Triggered . | . . . . . . . . . . . . . . . . . Disarmed . | . . . . . . . . . . . . . . . . . Reprogrammed . | . . . . . . . . . . . . . . . . . Reused . | . . . . . . . . . . . . . . . . . Traps Extracted 5 | . . . . . . . . . . . . . 5 . . . Installed 3 | . . 3 . . . . . . . . . . . . . . Triggered 1 | . . . . . . . . . . . . . . 1 . . Most Traps Carried 10 | . . . . . . . . . . . . . 6 10 6 6 Exploded 3 | . . . . . 3 . . . . . . . . . . . Machines | -11 -10 -10 -9 -9 -9 -8 -8 -8 -8 -8 -8 -7 -7 -7 -7 -7 ---------- Run | Jun Mat Min Mat Min Exi Min Mat Gar Mat Gar Mat Fac Low Low Zio Dee Machines Disabled 41 | . . 1 5 . 5 1 2 4 . 9 1 13 . . . . Max in Single Turn 4 | . . . 2 . 1 1 1 1 . 1 1 4 . . . . Garrison Relay 7 | . . . . . . . . 4 . 3 . . . . . . Machines Repaired . | . . . . . . . . . . . . . . . . . Machines Sabotaged . | . . . . . . . . . . . . . . . . . Overloaded Fab Kills . | . . . . . . . . . . . . . . . . . Hacking | -11 -10 -10 -9 -9 -9 -8 -8 -8 -8 -8 -8 -7 -7 -7 -7 -7 --------- Run | Jun Mat Min Mat Min Exi Min Mat Gar Mat Gar Mat Fac Low Low Zio Dee Machines Accessed 62 | . 10 1 10 . 1 . 10 1 6 2 10 9 1 1 . . Terminals 40 | . 7 1 8 . . . 6 1 4 2 7 3 . 1 . . Fabricators 3 | . . . . . . . . . . . . 3 . . . . Repair Stations 3 | . 1 . . . . . 1 . . . . 1 . . . . Recycling Units 10 | . 2 . 2 . . . 1 . 1 . 2 2 . . . . Scanalyzers 2 | . . . . . . . 1 . . . 1 . . . . . Garrison Access 2 | . . . . . . . 1 . 1 . . . . . . . Total Hacks 175 | . 30 4 24 . 1 . 30 3 12 4 34 30 1 2 . . Successful 97 | . 16 1 15 . 1 . 17 1 5 1 21 16 1 2 . . Failed 78 | . 14 3 9 . . . 13 2 7 3 13 14 . . . . Catastrophic 8 | . 1 . 1 . . . . . 3 1 . 2 . . . . Database Lockouts . | . . . . . . . . . . . . . . . . . Manual 72 | . 19 4 10 . . . 8 2 5 . 7 17 . . . . Terminals 120 | . 26 4 21 . . . 20 3 9 4 23 8 . 2 . . Fabricators 15 | . . . . . . . . . . . . 15 . . . . Repair Stations 6 | . 2 . . . . . 2 . . . . 2 . . . . Recycling Units 18 | . 2 . 3 . . . 1 . 1 . 6 5 . . . . Scanalyzers 9 | . . . . . . . 4 . . . 5 . . . . . Garrison Access 5 | . . . . . . . 3 . 2 . . . . . . . Terminal Hacks 50 | . 9 1 11 . 1 . 8 1 2 1 12 1 1 2 . . Record 4 | . . . . . 1 . . . . . . . 1 2 . . Part Schematic 1 | . 1 . . . . . . . . . . . . . . . Robot Analysis 5 | . 2 1 1 . . . . . 1 . . . . . . . Prototype ID Bank 3 | . . . . . . . 2 . . . 1 . . . . . Open Door 1 | . . . . . . . . . . 1 . . . . . . Branch Access Points 2 | . . . . . . . . . 1 . . 1 . . . . Terminal Index 2 | . . . 1 . . . . . . . 1 . . . . . Alert Level 4 | . . . 1 . . . . . . . 3 . . . . . Unreport Threat 3 | . . . . . . . . . . . 3 . . . . . Locate Traps 4 | . 2 . 1 . . . . . . . 1 . . . . . Hauler Manifests 5 | . 1 . 2 . . . 1 . . . 1 . . . . . Zone Layout 15 | . 3 . 5 . . . 5 . . . 2 . . . . . Patrol Navigation 1 | . . . . . . . . 1 . . . . . . . . Fabricator Hacks 4 | . . . . . . . . . . . . 4 . . . . Network Status 1 | . . . . . . . . . . . . 1 . . . . Load Schematic 1 | . . . . . . . . . . . . 1 . . . . Build 2 | . . . . . . . . . . . . 2 . . . . Repair Station Hacks 4 | . 2 . . . . . . . . . . 2 . . . . Scan Component 2 | . 1 . . . . . . . . . . 1 . . . . Repair 2 | . 1 . . . . . . . . . . 1 . . . . Recycling Unit Hacks 4 | . . . 1 . . . . . . . 1 2 . . . . Retrieve Components 4 | . . . 1 . . . . . . . 1 2 . . . . Scanalyzer 8 | . . . . . . . 4 . . . 4 . . . . . Insert Component 3 | . . . . . . . 1 . . . 2 . . . . . Analyze 5 | . . . . . . . 3 . . . 2 . . . . . Garrison Access Hacks 2 | . . . . . . . 1 . 1 . . . . . . . Unlock Access 2 | . . . . . . . 1 . 1 . . . . . . . Unauthorized Hacks 25 | . 5 . 3 . . . 4 . 2 . 4 7 . . . . Terminals 12 | . 3 . 1 . . . 3 . 1 . 2 2 . . . . Track 3 | . 1 . 1 . . . . . 1 . . . . . . . Botnet 5 | . 1 . . . . . 2 . . . 1 1 . . . . Operators 4 | . 1 . . . . . 1 . . . 1 1 . . . . Fabricators 4 | . . . . . . . . . . . . 4 . . . . Report 1 | . . . . . . . . . . . . 1 . . . . Prioritize 1 | . . . . . . . . . . . . 1 . . . . Liberate 1 | . . . . . . . . . . . . 1 . . . . Haulers 1 | . . . . . . . . . . . . 1 . . . . Repair Stations . | . . . . . . . . . . . . . . . . . Recycling Units 9 | . 2 . 2 . . . 1 . 1 . 2 1 . . . . Reject 1 | . . . . . . . . . . . . 1 . . . . Tunnel 8 | . 2 . 2 . . . 1 . 1 . 2 . . . . . Scanalyzers . | . . . . . . . . . . . . . . . . . Garrison Access . | . . . . . . . . . . . . . . . . . Data Cores Recovered . | . . . . . . . . . . . . . . . . . Used . | . . . . . . . . . . . . . . . . . Hacking Detections 49 | . 8 1 8 . . . 7 1 5 1 8 9 . 1 . . Full Trace Events 6 | . 1 1 . . . . 1 . 1 1 . 1 . . . . Feedback Events . | . . . . . . . . . . . . . . . . . Feedback Blocked . | . . . . . . . . . . . . . . . . . Robot Schematics Acquired . | . . . . . . . . . . . . . . . . . Robots Built 1 | . . . . . . . . . . . . 1 . . . . Authchips . | . . . . . . . . . . . . . . . . . Time 27 | . . . . . . . . . . . . 27 . . . . Total Robot Build Rating 1 | . . . . . . . . . . . . 1 . . . . Part Schematics Acquired 4 | . 1 . . . . . 1 . . . 2 . . . . . Parts Built 1 | . . . . . . . . . . . . 1 . . . . Authchips 1 | . . . . . . . . . . . . 1 . . . . Time 51 | . . . . . . . . . . . . 51 . . . . Total Part Build Rating 1 | . . . . . . . . . . . . 1 . . . . Parts Repaired 2 | . 1 . . . . . . . . . . 1 . . . . Time 39 | . 13 . . . . . . . . . . 26 . . . . Parts Recycled . | . . . . . . . . . . . . . . . . . Recycled Matter . | . . . . . . . . . . . . . . . . . Retrieved Matter . | . . . . . . . . . . . . . . . . . Retrieved Components 15 | . . . 2 . . . . . . . 9 4 . . . . Parts Scanalyzed 3 | . . . . . . . 1 . . . 2 . . . . . Part Schematics Acquired 3 | . . . . . . . 1 . . . 2 . . . . . Parts Damaged 1 | . . . . . . . . . . . 1 . . . . . Bothacking | -11 -10 -10 -9 -9 -9 -8 -8 -8 -8 -8 -8 -7 -7 -7 -7 -7 ------------ Run | Jun Mat Min Mat Min Exi Min Mat Gar Mat Gar Mat Fac Low Low Zio Dee Used RIF Installer . | . . . . . . . . . . . . . . . . . Robots Hacked 10 | . . . . . 4 . . . . . . . 4 . 2 . Non-combat 4 | . . . . . 3 . . . . . . . 1 . . . Combat 6 | . . . . . 1 . . . . . . . 3 . 2 . Robot Hacks Applied 10 | . . . . . 4 . . . . . . . 4 . 2 . parse_system 10 | . . . . . 4 . . . . . . . 4 . 2 . Relay Couplers Released 26 | . . . . . . . . 14 . 12 . . . . . . Machine Destruction 26 | . . . . . . . . 14 . 12 . . . . . . Fabnet Peak Effective % . | . . . . . . . . . . . . . . . . . Robots Rewired 2 | . . . . . . . . . . . . . 2 . . . Allies Hacked . | . . . . . . . . . . . . . . . . . Hacks Repelled . | . . . . . . . . . . . . . . . . . Allies | -11 -10 -10 -9 -9 -9 -8 -8 -8 -8 -8 -8 -7 -7 -7 -7 -7 -------- Run | Jun Mat Min Mat Min Exi Min Mat Gar Mat Gar Mat Fac Low Low Zio Dee Total Allies 10 | . . 4 . . . . . . . 1 . 3 2 . . . Largest Group 3 | . . 3 3 . . . . . . 1 . 3 3 1 1 1 Highest-Rated Group 72 | . . 40 40 . . . . . . 20 . 72 54 8 8 8 Highest-Rated Ally 32 | . . 31 16 . . . . . . 20 . 32 30 8 8 8 Total Orders 24 | . . . . . . . . . . . . . 10 7 . 7 STAY 12 | . . . . . . . . . . . . . 5 2 . 5 FOLLOW 5 | . . . . . . . . . . . . . 2 1 . 2 DROP 2 | . . . . . . . . . . . . . . 2 . . PICKUP 3 | . . . . . . . . . . . . . 2 1 . . COLLECT 2 | . . . . . . . . . . . . . 1 1 . . Ally Attacks 81 | . . 43 22 . . . . . . 2 . . 14 . . . Total Damage 1108 | . . 545 212 . . . . . . 60 . . 291 . . . Kills 18 | . . 9 5 . . . . . . . . . 4 . . . Allies Corrupted . | . . . . . . . . . . . . . . . . . Allies Melted . | . . . . . . . . . . . . . . . . . Intel | -11 -10 -10 -9 -9 -9 -8 -8 -8 -8 -8 -8 -7 -7 -7 -7 -7 ------- Run | Jun Mat Min Mat Min Exi Min Mat Gar Mat Gar Mat Fac Low Low Zio Dee Robot Analysis Total 5 | . 2 1 1 . . . . . 1 . . . . . . . Derelict Logs Recovered 4 | . . 1 . . . . . . . . . . 1 2 . . Drone Launches . | . . . . . . . . . . . . . . . . . Drone Recoveries . | . . . . . . . . . . . . . . . . . Exploration | -11 -10 -10 -9 -9 -9 -8 -8 -8 -8 -8 -8 -7 -7 -7 -7 -7 ------------- Run | Jun Mat Min Mat Min Exi Min Mat Gar Mat Gar Mat Fac Low Low Zio Dee Turns Passed 34929 | 160 1480 1464 1748 393 1977 1390 1558 1516 1428 1676 1838 2894 4014 3627 3344 4422 Spaces Moved 11189 | 98 677 630 622 134 673 578 558 500 442 552 624 893 1139 1057 998 1014 Core 16 | 16 . . . . . . . . . . . . . . . . Treads 8618 | . . 2 73 134 673 578 558 500 442 552 624 893 1139 1057 998 395 Legs 803 | 82 144 . . . . . . . . . . . . . . 577 Wheels 1710 | . 533 628 549 . . . . . . . . . . . . . Hover 42 | . . . . . . . . . . . . . . . . 42 Flight . | . . . . . . . . . . . . . . . . . Fastest Speed 50 | 50 80 200 200 240 225 225 225 235 235 240 236 238 250 250 250 325 Average Speed 271 | 108 182 200 216 240 233 225 232 235 239 240 238 277 329 328 329 389 Slowest Speed 730 | 120 200 480 312 240 240 225 236 236 240 240 240 410 330 330 330 730 Overloaded Moves . | . . . . . . . . . . . . . . . . . Propulsion Burnouts . | . . . . . . . . . . . . . . . . . Robots Hopped . | . . . . . . . . . . . . . . . . . Cave-ins Triggered . | . . . . . . . . . . . . . . . . . Exploration Rate (%) 70 | 7 99 101 70 29 81 100 57 72 51 75 59 29 98 99 87 76 Regions Visited 16 Branch Regions 8 Pre-discovered Areas 12 | . 2 1 2 . 1 . 1 . 1 . 2 . 1 . 1 . Known Exits Taken 4 | . . . . . . . 1 . 1 . . 1 1 . . . Unknown Exits Taken 10 | 1 1 1 1 1 1 1 . . . . 1 . . 1 1 . Scrap Searched 17 | . . 1 . . . 1 . . . . . . 5 5 5 . Spaces Dug 156 | . . . . 25 . 25 1 42 . 42 . 4 11 1 2 3 Terrain Destroyed 613 | . . 2 63 35 24 59 25 59 . 42 44 122 52 46 2 38 Melee 77 | . . . . . . . 1 42 . 30 . 2 . . 2 . Projectile 101 | . . . . . 2 2 7 3 . . . 16 33 22 . 16 AOE 435 | . . 2 63 35 22 57 17 14 . 12 44 104 19 24 . 22 Terrain Rammed . | . . . . . . . . . . . . . . . . . Walls Destroyed . | . . . . . . . . . . . . . . . . . Machines Disabled . | . . . . . . . . . . . . . . . . . Actions | -11 -10 -10 -9 -9 -9 -8 -8 -8 -8 -8 -8 -7 -7 -7 -7 -7 --------- Run | Jun Mat Min Mat Min Exi Min Mat Gar Mat Gar Mat Fac Low Low Zio Dee Total 13738 | 120 804 745 870 193 896 619 711 642 640 708 792 1144 1313 1153 1045 1343 Wait 691 | . 30 40 75 47 42 5 37 3 73 3 26 65 54 11 . 180 Move 11173 | 97 676 629 621 133 672 577 557 499 441 551 623 892 1138 1056 997 1014 Hop . | . . . . . . . . . . . . . . . . . Pick Up 176 | 3 20 14 27 . 20 1 17 7 12 9 8 13 6 9 4 6 Fast Attach 85 | 6 6 . 7 . 1 . 4 1 4 1 8 11 5 8 9 14 Attach 110 | . 2 8 10 . 13 1 4 7 7 6 1 11 13 7 6 14 Detach 47 | . 3 2 3 . . . 1 . . 1 . 11 10 4 5 7 Swap 152 | . 1 . 12 5 9 5 9 19 16 34 14 14 . . . 14 Drop 181 | . 4 6 27 . 12 1 20 4 12 8 28 24 7 12 12 4 Fire 921 | 14 61 42 86 8 123 22 58 51 69 44 81 87 60 41 . 74 Melee 118 | . . . . . 4 . 1 45 2 47 . 3 4 . 12 . Ram . | . . . . . . . . . . . . . . . . . Kick 1 | . 1 . . . . . . . . . . . . . . . Crush 51 | . . 1 2 . . 7 3 . 4 . 3 11 3 3 . 14 Escape Stasis 12 | . . . . . . . . 6 . 4 . 2 . . . . Rewire 17 | . . . . . . . . . . . . . 13 2 . 2 Trap 3 | . . 3 . . . . . . . . . . . . . . Miscellaneous . | . . . . . . . . . . . . . . . . . Route ------- -11/Junkyard -10/Materials (discovered 4 exits: *Mat x3 / *Min) -10/Mines (discovered 2 exits: *Mat x2) -9/Materials (discovered 4 exits: *Mat x2 / [*Min x2]) -9/Mines -9/Exiles -8/Mines (discovered 2 exits: *Mat x2) -8/Materials (discovered 5 exits: *Fac x2 / *Sto x2 / Gar) -8/Garrison (discovered 2 exits: *Mat x2) -8/Materials (discovered 3 exits: *Fac / Sto / Gar) -8/Garrison (discovered 2 exits: *Mat x2) -8/Materials (discovered 3 exits: *Fac x2 / *Sto) -7/Factory (discovered 3 exits: [*Fac] / *Low x2) -7/Lower Caves (discovered 2 exits: *Low / [*Zio]) -7/Lower Caves (discovered 2 exits: [*Fac] / [*Zio]) -7/Zion (discovered 2 exits: [*Dee] / [*Pro]) -7/Deep Caves (discovered 1 exit: [*Pro]) History --------- Turn | Location | Event 2 | -11/Junkyard | Met Revision 17 76 | -11/Junkyard | Discovered new exit (range 8) 161 | -11/Junkyard | Entered Materials 238 | -10/Materials | Discovered new exit (range 15) 317 | -10/Materials | Build established: Mutant 710 | -10/Materials | Discovered new exit (range 16) 757 | -10/Materials | Repaired Lgt. Treads 854 | -10/Materials | Discovered new exit (range 17) 1177 | -10/Materials | Discovered new exit (range 20) 1641 | -10/Materials | Entered Mines 1652 | -10/Mines | Met a Derelict bent on vengeance 1790 | -10/Mines | Discovered new exit (range 9) 1801 | -10/Mines | Core integrity fell below 50% 1930 | -10/Mines | Discovered new exit (range 5) 1931 | -10/Mines | Met a Derelict testing a Signal Generator 2172 | -10/Mines | Found a hidden stash of uninstalled traps 2362 | -10/Mines | Assisted by bots powering up and referring to "LRC-V3" 2475 | -10/Mines | Learned location of Recycling (-8) 2735 | -10/Mines | A weapon hastily lodged in a ceiling crevice suddenly fell to the ground 3105 | -10/Mines | Entered Materials 3105 | -9/Materials | Accompanied by 3 allies 3105 | -9/Materials | Evolved 2 slots: Propulsion x1, Utility x1 3159 | -9/Materials | Discovered new exit (range 9) 3707 | -9/Materials | Discovered new exit (range 16) 4243 | -9/Materials | Lost 3 parts (1p1u1w) 4261 | -9/Materials | Discovered new exit (range 14) 4679 | -9/Materials | Build established: Scavenger-Mutant 4821 | -9/Materials | Discovered new exit (range 12) 4853 | -9/Materials | Entered Mines 4854 | -9/Mines | Assembled infested the area 5172 | -9/Mines | Deemed a non-threat by the Exiles lab entrance 5172 | -9/Mines | Discovered new exit (range 5) 5246 | -9/Mines | Entered Exiles 5313 | -9/Exiles | Met 8R-AWN 5353 | -9/Exiles | Met EX-HEX 5539 | -9/Exiles | Met EX-DEC 5601 | -9/Exiles | Learned location of Zion (-7) 6032 | -9/Exiles | Met EX-BIN 6167 | -9/Exiles | Attacked by the Exiles 6342 | -9/Exiles | Core integrity fell below 50% 6352 | -9/Exiles | Lost 5 parts (3n1u1w) 6414 | -9/Exiles | Destroyed 8R-AWN 6419 | -9/Exiles | Found 8R-AWN's Boregun 6433 | -9/Exiles | Found Exp. Targeting Computer 6440 | -9/Exiles | Lost 5 parts (1p2n1u1w) 6445 | -9/Exiles | Found 8R-AWN's Armor/EX 6675 | -9/Exiles | Build established: Mutant 6827 | -9/Exiles | Destroyed EX-BIN 6838 | -9/Exiles | Destroyed EX-HEX 6901 | -9/Exiles | Destroyed EX-DEC 6937 | -9/Exiles | Found Exp. Core Analyzer 7201 | -9/Exiles | Discovered new exit (range 11) 7223 | -9/Exiles | Entered Mines 7232 | -8/Mines | Core integrity fell below 20% 7295 | -8/Mines | Discovered new exit (range 6) 8134 | -8/Mines | Discovered new exit (range 11) 8613 | -8/Mines | Entered Materials 8613 | -8/Materials | Evolved 2 slots: Propulsion x1, Utility x1 8878 | -8/Materials | Garrison activated, responded to threat 9147 | -8/Materials | Discovered new exit (range 16) 9289 | -8/Materials | Discovered new exit (range 16) 9359 | -8/Materials | Build established: Scavenger-Mutant 9446 | -8/Materials | Identified exit to Garrison 9751 | -8/Materials | Discovered new exit (range 6) 9954 | -8/Materials | Discovered new exit (range 14) 10171 | -8/Materials | Entered Garrison 10192 | -8/Garrison | Triggered checkpoint 10253 | -8/Garrison | Garrison Relay disabled 10439 | -8/Garrison | Destroyed 10 combat bots 10504 | -8/Garrison | Triggered checkpoint 10584 | -8/Garrison | Triggered checkpoint 10731 | -8/Garrison | Garrison Relay disabled 10738 | -8/Garrison | Triggered checkpoint 10802 | -8/Garrison | Garrison Relay disabled 10943 | -8/Garrison | Discovered new exit (range 13) 11164 | -8/Garrison | Triggered checkpoint 11338 | -8/Garrison | Triggered checkpoint 11434 | -8/Garrison | Triggered checkpoint 11437 | -8/Garrison | Garrison Relay disabled 11647 | -8/Garrison | Discovered new exit (range 13) 11687 | -8/Garrison | Entered Materials 12087 | -8/Materials | First assault squad dispatched 12468 | -8/Materials | System corruption reached 10% 12777 | -8/Materials | Identified exit to Storage 13007 | -8/Materials | Discovered new exit (range 8) 13051 | -8/Materials | Core integrity fell below 50% 13099 | -8/Materials | Garrison activated, responded to threat 13102 | -8/Materials | Identified exit to Garrison 13115 | -8/Materials | Entered Garrison 13122 | -8/Garrison | Triggered checkpoint 13228 | -8/Garrison | Triggered checkpoint 13324 | -8/Garrison | Garrison Relay disabled 13395 | -8/Garrison | Garrison Relay disabled 13539 | -8/Garrison | Triggered checkpoint 13552 | -8/Garrison | Triggered checkpoint 13766 | -8/Garrison | Discovered new exit (range 15) 14116 | -8/Garrison | Rescued a captive Derelict 14136 | -8/Garrison | Garrison Relay disabled 14286 | -8/Garrison | Triggered checkpoint 14318 | -8/Garrison | Triggered checkpoint 14626 | -8/Garrison | Triggered checkpoint 14633 | -8/Garrison | Discovered new exit (range 15) 14791 | -8/Garrison | Entered Materials 15173 | -8/Materials | Discovered new exit (range 16) 15539 | -8/Materials | Discovered exit to Storage (range 9) 15619 | -8/Materials | Discovered new exit (range 12) 15991 | -8/Materials | First assault squad dispatched 16454 | -8/Materials | Core integrity fell below 20% 16629 | -8/Materials | Entered Factory 16629 | -7/Factory | Evolved 2 slots: Power x1, Utility x1 17915 | -7/Factory | Fabricated Cargo Storage Unit (x1) 18084 | -7/Factory | Discovered new exit (range 11) 18264 | -7/Factory | Build established: Hauler-Mutant 18322 | -7/Factory | Repaired Lgt. Treads 18629 | -7/Factory | First assault squad dispatched 18683 | -7/Factory | Identified exit to Lower Caves 19425 | -7/Factory | Fabricated R-06 Scavenger (x1) 19523 | -7/Factory | Entered Lower Caves 19523 | -7/Lower Caves | Accompanied by 1 ally 19549 | -7/Lower Caves | Attracted the attention of an 0b10 checkpoint 19721 | -7/Lower Caves | Attracted the attention of an 0b10 outpost 19751 | -7/Lower Caves | Met a Warlord Commander 19752 | -7/Lower Caves | Learned location of Warlord (-5) 19760 | -7/Lower Caves | Found Encrypted Comm Array 19769 | -7/Lower Caves | Destroyed 7 combat bots 19884 | -7/Lower Caves | Encountered a Warlord checkpoint 20486 | -7/Lower Caves | Identified exit to Lower Caves 21813 | -7/Lower Caves | Ambushed by research squad 23197 | -7/Lower Caves | A Derelict revealed a hidden shortcut to a safe place 23537 | -7/Lower Caves | Entered another Lower Caves area 23537 | -7/Lower Caves | Accompanied by 1 ally 23652 | -7/Lower Caves | Discovered new exit (range 12) 24155 | -7/Lower Caves | Learned location of 1 exit from Factory 25020 | -7/Lower Caves | Encountered a Warlord checkpoint 26584 | -7/Lower Caves | Discovered new exit (range 15) 26639 | -7/Lower Caves | Learned location of 1 exit from Proximity Caves 27164 | -7/Lower Caves | Entered Zion 27164 | -7/Zion | Accompanied by 1 ally 27271 | -7/Zion | System corruption cleaned by Quarantine Array 27507 | -7/Zion | Discovered new exit (range 15) 28247 | -7/Zion | Learned Factory emergency access door positions 28841 | -7/Zion | Given A8's code to call for help 29836 | -7/Zion | Found CR-A16's Pointy Stick 30495 | -7/Zion | Discovered new exit (range 5) 30498 | -7/Zion | Saw the warning signs outside the Deep Caves entrance 30508 | -7/Zion | Entered Deep Caves 30508 | -7/Deep Caves | Accompanied by 1 ally 31396 | -7/Deep Caves | Attacked by Z-Imprinter 31441 | -7/Deep Caves | Destroyed Z-Imprinter 31501 | -7/Deep Caves | Lost 10 parts (2p5n1u2w) 31850 | -7/Deep Caves | Z-Facility disabled 31857 | -7/Deep Caves | Core integrity fell below 50% 31913 | -7/Deep Caves | Lost 5 parts (1p2n1u1w) 31983 | -7/Deep Caves | Found Prototype Protection 31983 | -7/Deep Caves | Identified Zio. Weapon Casing 31992 | -7/Deep Caves | Found Zio. Weapon Casing 32573 | -7/Deep Caves | Found Zio. Weapon Casing 32947 | -7/Deep Caves | Discovered new exit (range 7) 34310 | -7/Deep Caves | Spotted as-99652 34322 | -7/Deep Caves | Core integrity fell below 20% 34326 | -7/Deep Caves | Destroyed as-99652 34346 | -7/Deep Caves | Lost 3 parts (1n1u1w) 34923 | -7/Deep Caves | Spotted as-61822 34930 | -7/Deep Caves | Destroyed by as-61822 with Assembled Focal Cannon Last Messages --------------- 34333_ Exp. Core Analyzer temporarily disabled. 34373_ Acquired Hrd. Light Armor Plating. 34462_ as-32117 Prototype Leg integration complete. 34463_ as-32117 GOLEM Unit beginning Prototype Reactor integration. 34579_ as-32117 Prototype Reactor integration complete. 34580_ as-32117 GOLEM Unit beginning Prototype Leg integration. 34662_ Chain reaction triggered in Prototype Reactor. 34663_ as-32117 system terminally corrupted. 34710_ Acquired 120 matter. 34817_ Discarded Exp. Core Analyzer. 34836_ HV Slug penetrates Wall. 34838_ HV Slug penetrates KN-0M6(M). 34838_ HV Slug penetrates Wall. 34840_ HV Slug penetrates KN-0M6(M). 34840_ KN-0M6(M) suffers critical hit (Destroy). 34840_ KN-0M6(M) destroyed. 34840_ HV Slug penetrates Wall. 34842_ Acquired 68 matter. 34850_ Acquired Arm. Treads. 34925_ as-61822: "DSI9AT1D G8OHIBQ29FWG 26R186 QD12WHW8W33 TDK1 81FTS" Map ----- +----------------------------------------------------+ | | | | | | | | | | | | | | | | | | | ??????????????????????????????????????????????? | | ??????????????????????????????????????????????? | | ??????????????????????????????????????????????? | | ???????????????????????????????????????######## | | ????????????? ??????????????##???????# ""# | | ??????????? #???????????## ##?????# | | ??????????? # ??????????# ##?????# | | ?????????? #???##????# ######## | | ?????????? # ?? #????# | | ?????????? ?? #????## | | ?????????"" ?? #?????# ######## | | ?????????G ## #?????# ######??# | | ????????" ; #####?### ### #### | | ????????" ????# ## | | ????????# = #?????# # | | ?????????" #??????# ### "" | | ?????????" @;##??????# #?## | | ?????????" ##?????# #??## # | | ?????????" ###;#?????# #???## #### | | ?????????" ! ??# #?????# ##???##???# | | ????????# g! ### ####?## ####????## | | ????????? s # ### ##??## | | ????????? ##### ##?# | | ????????? ### ### | | ?????????? # # | | ?????????? ! ### #"" # | | ??????????? = #### ### "" " | | ??????????? = #?### #?# "" # | | ??????????? == = #???# ### "" # | | ?????????? = #???# ## " | | ?????????? [ #???# # | | ?????????? =[[ ! #???# | | ?????????" [ [ ] #???#### | | ?????????" [ #??????# | | ?????????" ##?????# | | ?????????" ![ #?????# | | ????????# ! #?????# | | ????????" ! #?????# | | ????????" ! ! ####### | | ????????" ! ! | | ????????""" ##### | +----------------------------------------------------+ Best States ------------- Heat Dissipation 60 Energy Generation 29 Energy Capacity 700 Matter Stores 300 Matter Capacity 300 Sight Range 16 Terrain Scan Density 10 Jamming Range 16 Armor Coverage 600 Core Shielding 20 Weapon Shielding 100 Phase Shifting 5 Evasion (%) 55 Core Analysis 8 Recoil Reduction 4 Authchip Count 2 Trap Extractor Capacity 6 Item Schematics ----------------- Cargo Storage Unit | -10/Materials | Hacked Exp. Targeting Computer | -8/Materials | Scanalyzed Gatling Laser | -8/Materials | Scanalyzed Lrn. Tractor Beam | -8/Materials | Scanalyzed Robot Schematics ------------------ None Fabricated ------------ Cargo Storage Unit | x1 | -7/Factory | Authchip R-06 Scavenger | x1 | -7/Factory | Preloaded Alien Tech Used ----------------- None Achievements -------------- None Challenges ------------ None Game ------ Seed EnergySwordGenerator Manual? 0 Play Time 02:59:17 Cumulative 431.6 hours Start 2024.01.08 @ 15:46:21 End 2024.01.08 @ 20:08:22 Sessions 3 Manual Loads 0 Difficulty Rogue Special Mode None Game No. 173 Rogue 173 Adventurer 0 Explorer 0 Win Type - Total 21 Types 8/0/5/3/0/0/4/1/0 Lore% 91 Gallery% 93 Achievement% 82 Wizard Run 0 Options --------- ASCII 0 Keyboard 1 Movement Arrows Keybinds 0 Fullscreen 2 Font 18/X11 Map View 76x50 Tactical HUD 1 Map Filters NONE Filters NONE Steam 1 RUN: e85157b9-ffee-4869-8dd5-e017968d9cea